Cogmind - Beta 13 @@@ ROGUE MODE // 2024.06.18 @ 14:09:12 Player: Lunace Result: Destroyed by H-61 Shepherd with Heavy Assault Cannon Performance ------------- Evolutions (2) 1000 Regions Visited (7) 1400 Robots Destroyed (20) 100 Value Destroyed (447) 447 Prototype IDs (1) 20 Alien Tech Used (0) 0 Bonus (0) 0 TOTAL SCORE: 2967 Bonus ------- None Cogmind --------- Core Integrity 0/550 Matter 207/300 Energy 99/100 System Corruption 8% Temperature Cool (0) Movement Core (50) Location -8/Materials Parts ------- > --- POWER (1) -------- (None) > --- PROPULSION (4) --- (None) > --- UTILITY (4) ------ Visual Processing Unit > --- WEAPON (2) ------- (None) > --- INVENTORY (5) ---- Light Deuterium Engine Improved Sensor Array Mini Grenade Launcher Datajack Flail Peak State ------------ > --- POWER ------------ Improved Ion Engine > --- PROPULSION ------- Light Treads Light Treads Light Treads Light Treads > --- UTILITY ---------- Large Storage Unit Visual Processing Unit Seismic Detector Transport Network Coupler > --- WEAPON ----------- Beamcaster Heavy Assault Rifle > --- INVENTORY -------- Improved Ion Engine Light Deuterium Engine Flight Unit Flight Unit Flight Unit VTOL Module Small Storage Unit Heavy Assault Rifle Datajack Flail [Rating: 19] Favorites ----------- Power Improved Ion Engine Engine Improved Ion Engine Propulsion Light Treads Treads Light Treads Flight Unit Flight Unit Utility Seismic Detector Device Seismic Detector Storage Small Storage Unit Processor Transport Network Coupler Weapon Heavy Assault Rifle Energy Gun Beamcaster Ballistic Gun Heavy Assault Rifle Launcher Mini Grenade Launcher Build | -11 -10 -10 -9 -9 -9 -8 -8 ------- Run | Yrd Mat Min Mat Min Exi Min Mat Slots Evolved 4 | . . . 2 . . . 2 Power . | . . . . . . . . Propulsion 2 | . . . 1 . . . 1 Utility 2 | . . . 1 . . . 1 Weapon . | . . . . . . . . Parts Attached 32 | 7 . 4 6 2 1 . 12 Power 3 | 1 . . 1 1 . . . Engine 3 | 1 . . 1 1 . . . Core . | . . . . . . . . Reactor . | . . . . . . . . Propulsion 13 | 2 . 1 3 . . . 7 Treads 8 | 2 . 1 3 . . . 2 Leg . | . . . . . . . . Wheel . | . . . . . . . . Hover . | . . . . . . . . Flight 5 | . . . . . . . 5 Utility 7 | 2 . . 1 1 1 . 2 Device 1 | 1 . . . . . . . Storage 3 | 1 . . . 1 1 . . Processor 3 | . . . 1 . . . 2 Hackware . | . . . . . . . . Protection . | . . . . . . . . Artifact . | . . . . . . . . Weapon 9 | 2 . 3 1 . . . 3 Energy Gun 4 | 2 . 1 . . . . 1 Energy Cannon . | . . . . . . . . Ballistic Gun 4 | . . 2 1 . . . 1 Ballistic Cannon . | . . . . . . . . Launcher 1 | . . . . . . . 1 Special Weapon . | . . . . . . . . Impact Weapon . | . . . . . . . . Slashing Weapon . | . . . . . . . . Piercing Weapon . | . . . . . . . . Special Melee Weapon . | . . . . . . . . Unidentified Prototypes . | . . . . . . . . Parts Lost 16 | . . . . . . . 16 Power 1 | . . . . . . . 1 Propulsion 9 | . . . . . . . 9 Utility 3 | . . . . . . . 3 Weapon 3 | . . . . . . . 3 Highest Loss Streak 13 | . . . . . . . 13 To Critical Strikes . | . . . . . . . . Average Slot Usage (%) 94 | . 100 99 98 100 100 100 72 Engine 10 | . 14 14 11 11 11 11 6 Treads 30 | . 28 28 32 33 33 33 24 Device 10 | . 14 14 11 11 11 11 6 Storage 10 | . 14 14 11 11 11 11 7 Processor 9 | . . . 11 11 11 11 13 Energy Gun 13 | . 28 25 11 11 11 11 6 Ballistic Gun 8 | . . 2 11 11 11 11 7 Naked Turns . | . . . . . . . . Heaviest Build 36 | 13 13 17 21 21 36 36 36 Greatest Support 80 | 40 40 40 60 60 60 60 80 Greatest Overweight (x) . | . . . . . . . . Average Overweight (x) . | . . . . . . . . Largest Inventory Capacity 15 | 8 8 8 8 8 15 15 15 Average Capacity 10 | 7 8 8 8 8 9 15 13 Most Carried 11 | 1 2 7 6 8 9 11 11 Average Carried 6 | . 1 2 4 6 8 9 8 Final Capacity 15 | 8 8 8 8 8 15 15 5 Final Carried 9 | 1 2 7 6 8 9 9 5 Class Distribution -------------------- 73% | Scavenger-Mutant 26% | Mutant Dominant Class ---------------- Mutant | -10/Materials Mutant | -10/Mines Scavenger-Mutant | -9/Materials Scavenger-Mutant | -9/Mines Scavenger-Mutant | -9/Exiles Scavenger-Mutant | -8/Mines Scavenger-Mutant | -8/Materials Resources | -11 -10 -10 -9 -9 -9 -8 -8 ----------- Run | Yrd Mat Min Mat Min Exi Min Mat Matter Collected 500 | 270 . 30 51 90 . 19 40 Remotely . | . . . . . . . . Salvage Created 761 | 108 . 58 101 144 . 26 324 Parts 56 | 11 . 4 11 10 . 3 17 Haulers Intercepted . | . . . . . . . . Recyclers Shooed 1 | . . . . 1 . . . Parts Field Recycled . | . . . . . . . . Retrieved Matter . | . . . . . . . . Parts Self-Destructed . | . . . . . . . . Prevented . | . . . . . . . . Kills | -11 -10 -10 -9 -9 -9 -8 -8 ------- Run | Yrd Mat Min Mat Min Exi Min Mat Combat Hostiles Destroyed 14 | . . 1 2 4 . 2 5 Guns 13 | . . 1 2 4 . 2 4 AOE 1 | . . . . . . . 1 Classes Destroyed 7 | 2 . 1 . 1 . . 3 Tunneler 2 | 2 . . . . . . . Recycler 3 | 1 . . . 1 . . 1 Watcher 1 | . . . . . . . 1 Swarmer 7 | . . . . 4 . 2 1 Grunt 2 | . . . . . . . 2 Brawler 1 | . . . . . . . 1 Sentry 4 | . . 1 2 . . . 1 Best Kill Streak 5 | 3 . 1 1 5 . 2 2 Combat Bots Only 4 | . . 1 1 4 . 2 2 Max Kills in Single Turn 1 | 1 . 1 1 1 . 1 1 Gunslinging . | . . . . . . . . Exploded 1 | . . . . . . . 1 Melee . | . . . . . . . . Uniques/NPCs Destroyed . | . . . . . . . . Combat | -11 -10 -10 -9 -9 -9 -8 -8 -------- Run | Yrd Mat Min Mat Min Exi Min Mat Hostile Shots Fired 187 | . . 8 6 29 . 7 137 Missed 39 | . . 2 . 9 . 1 27 Damage Taken 1901 | . . 91 84 170 . 46 1510 Core 562 | . . . . 9 . . 553 Absorbed by Shields . | . . . . . . . . Core Remaining (%) 99 | 100 . 100 . . . 97 . Volleys Fired 52 | 4 . 4 7 10 . 3 24 Largest 2 | 2 . 2 2 2 . 2 2 Hottest 98 | 90 . 90 98 98 . 98 98 Shots Fired 98 | 8 . 8 14 20 . 6 42 Gun 97 | 8 . 8 14 20 . 6 41 Cannon . | . . . . . . . . Launcher 1 | . . . . . . . 1 Special . | . . . . . . . . Kinetic 46 | . . . 7 10 . 3 26 Thermal 43 | 4 . 4 7 10 . 3 15 Explosive 1 | . . . . . . . 1 Electromagnetic 8 | 4 . 4 . . . . . Robot Hit Streak 10 | 2 . 3 6 7 . 2 10 Robot Miss Streak 5 | 2 . 1 5 5 . 2 2 Penetration Max . | . . . . . . . . Secondary Targets 5 | . . . . 2 . 1 2 Max Gunslinging Chain 1 | . . . . 1 . 1 1 Shots Hit Robots 56 | 3 . 6 6 10 . 3 28 Core Hits 31 | 3 . 2 3 5 . 2 16 Critical Kills . | . . . . . . . . Critical Parts Destroyed . | . . . . . . . . Critical Strikes 1 | . . . . . . . 1 Burn 1 | . . . . . . . 1 Melee Attacks . | . . . . . . . . Impact . | . . . . . . . . Slashing . | . . . . . . . . Piercing . | . . . . . . . . Sneak Attacks . | . . . . . . . . Combat Hostiles . | . . . . . . . . Follow-up Attacks . | . . . . . . . . Damage Inflicted 1121 | 42 . 72 124 236 . 58 589 Guns 1064 | 42 . 72 124 236 . 58 532 Cannons . | . . . . . . . . Explosions 57 | . . . . . . . 57 Melee . | . . . . . . . . Ramming . | . . . . . . . . Kinetic 452 | . . . 63 111 . 17 261 Thermal 549 | . . 51 61 125 . 41 271 Explosive 57 | . . . . . . . 57 Electromagnetic 63 | 42 . 21 . . . . . Impact . | . . . . . . . . Slashing . | . . . . . . . . Piercing . | . . . . . . . . Highest Corruption 8 | . . . . . . . 8 Average Corruption 8 | . . . . . . . 8 Corruption Purged . | . . . . . . . . Corruption Blocked . | . . . . . . . . Effects 1 | . . . . . . . 1 Matter Fused 1 | . . . . . . . 1 Overload Shots . | . . . . . . . . Overflow Damage . | . . . . . . . . Projectiles . | . . . . . . . . Explosions . | . . . . . . . . Melee . | . . . . . . . . Knockbacks . | . . . . . . . . Impact . | . . . . . . . . Kinetic . | . . . . . . . . Secondary . | . . . . . . . . Self-Inflicted Damage . | . . . . . . . . Shots . | . . . . . . . . Rammed . | . . . . . . . . Targets Rammed . | . . . . . . . . Kicked . | . . . . . . . . Crushed . | . . . . . . . . Highest Temperature 387 | 120 . 138 108 300 . 90 387 Average Temperature 132 | 61 . 70 43 152 . 39 197 Received Heat Transfer 729 | . . 27 27 . . . 675 Effects 1 | . . . . . . . 1 Shutdowns 1 | . . . . . . . 1 Siege Activations . | . . . . . . . . Robots Corrupted . | . . . . . . . . Combat Hostiles . | . . . . . . . . Parts Fried . | . . . . . . . . Impact Corruptions . | . . . . . . . . Robots Melted . | . . . . . . . . Combat Hostiles . | . . . . . . . . Parts Melted 1 | . . . . 1 . . . Heat Transferred 1110 | . . 148 111 222 . 74 555 Parts Sabotaged . | . . . . . . . . Parts Stolen . | . . . . . . . . Parts Stripped . | . . . . . . . . Power Chain Reactions . | . . . . . . . . Alert | -11 -10 -10 -9 -9 -9 -8 -8 ------- Run | Yrd Mat Min Mat Min Exi Min Mat Peak Influence 172 | 15 9 38 90 129 . 40 172 Initial 34 | . 9 3 14 34 . . 15 Average 48 | 3 9 12 46 93 . 39 68 Maximum Alert Level . | . . . . . . . . Low Security (%) 100 | 100 100 100 100 100 . 100 100 Level 1 . | . . . . . . . . Level 2 . | . . . . . . . . Level 3 . | . . . . . . . . Level 4 . | . . . . . . . . Level 5 . | . . . . . . . . High Security . | . . . . . . . . Max Security . | . . . . . . . . Squads Dispatched 3 | . . . 1 . . . 2 Investigation . | . . . . . . . . Extermination . | . . . . . . . . Reinforcement 3 | . . . 1 . . . 2 Assault . | . . . . . . . . Garrison . | . . . . . . . . Intercept . | . . . . . . . . Searches Triggered . | . . . . . . . . Construction Impeded . | . . . . . . . . Haulers Reinforced . | . . . . . . . . Active Scanning Responses . | . . . . . . . . Cargo Convoy Interrupts . | . . . . . . . . Stealth | -11 -10 -10 -9 -9 -9 -8 -8 --------- Run | Yrd Mat Min Mat Min Exi Min Mat Distress Signals 3 | . . . . . . . 3 Communications Jammed . | . . . . . . . . Distress Signals . | . . . . . . . . Times Spotted 34 | . 2 2 4 4 . 2 20 Peak Tracking Total 7 | . 1 4 2 4 . 2 7 Tactical Retreats 1 | . . . . . . . 1 Traps | -11 -10 -10 -9 -9 -9 -8 -8 ------- Run | Yrd Mat Min Mat Min Exi Min Mat Traps Triggered 1 | . . . 1 . . . . Indirectly . | . . . . . . . . Trap Hack Attempts . | . . . . . . . . Triggered . | . . . . . . . . Disarmed . | . . . . . . . . Reprogrammed . | . . . . . . . . Reused . | . . . . . . . . Traps Extracted . | . . . . . . . . Installed . | . . . . . . . . Triggered . | . . . . . . . . Machines | -11 -10 -10 -9 -9 -9 -8 -8 ---------- Run | Yrd Mat Min Mat Min Exi Min Mat Machines Disabled 2 | . . 1 . . . . 1 Max in Single Turn 1 | . . 1 . . . . 1 Machines Repaired . | . . . . . . . . Machines Dismantled . | . . . . . . . . Machines Sabotaged . | . . . . . . . . Overloaded Fab Kills . | . . . . . . . . Hacking | -11 -10 -10 -9 -9 -9 -8 -8 --------- Run | Yrd Mat Min Mat Min Exi Min Mat Machines Accessed 3 | . . . . . 1 . 2 Terminals 1 | . . . . . . . 1 Fabricators . | . . . . . . . . Repair Stations . | . . . . . . . . Recycling Units . | . . . . . . . . Scanalyzers 1 | . . . . . . . 1 Garrison Access . | . . . . . . . . Total Hacks 3 | . . . . . 1 . 2 Successful 2 | . . . . . 1 . 1 Failed 1 | . . . . . . . 1 Catastrophic 1 | . . . . . . . 1 Database Lockouts . | . . . . . . . . Manual 1 | . . . . . . . 1 Terminals 1 | . . . . . . . 1 Fabricators . | . . . . . . . . Repair Stations . | . . . . . . . . Recycling Units . | . . . . . . . . Scanalyzers 1 | . . . . . . . 1 Garrison Access . | . . . . . . . . Terminal Hacks 1 | . . . . . 1 . . Record 1 | . . . . . 1 . . Fabricator Hacks . | . . . . . . . . Repair Station Hacks . | . . . . . . . . Recycling Unit Hacks . | . . . . . . . . Scanalyzer 1 | . . . . . . . 1 Insert Component 1 | . . . . . . . 1 Garrison Access Hacks . | . . . . . . . . Unauthorized Hacks . | . . . . . . . . Terminals . | . . . . . . . . Fabricators . | . . . . . . . . Repair Stations . | . . . . . . . . Recycling Units . | . . . . . . . . Scanalyzers . | . . . . . . . . Garrison Access . | . . . . . . . . Data Cores Recovered . | . . . . . . . . Used . | . . . . . . . . Hacking Detections 1 | . . . . . . . 1 Full Trace Events . | . . . . . . . . Feedback Events . | . . . . . . . . Feedback Blocked . | . . . . . . . . Robot Schematics Acquired . | . . . . . . . . Robots Built . | . . . . . . . . Authchips . | . . . . . . . . Time . | . . . . . . . . Total Robot Build Rating . | . . . . . . . . Part Schematics Acquired . | . . . . . . . . Parts Built . | . . . . . . . . Authchips . | . . . . . . . . Time . | . . . . . . . . Total Part Build Rating . | . . . . . . . . Parts Repaired . | . . . . . . . . Time . | . . . . . . . . Parts Recycled . | . . . . . . . . Recycled Matter . | . . . . . . . . Retrieved Matter . | . . . . . . . . Retrieved Components . | . . . . . . . . Parts Scanalyzed . | . . . . . . . . Part Schematics Acquired . | . . . . . . . . Parts Damaged . | . . . . . . . . Bothacking | -11 -10 -10 -9 -9 -9 -8 -8 ------------ Run | Yrd Mat Min Mat Min Exi Min Mat Used RIF Installer . | . . . . . . . . Robots Hacked . | . . . . . . . . Non-combat . | . . . . . . . . Combat . | . . . . . . . . Robot Hacks Applied . | . . . . . . . . Relay Couplers Released . | . . . . . . . . Fabnet Peak Effective % . | . . . . . . . . Robots Rewired . | . . . . . . . . Allies Hacked . | . . . . . . . . Hacks Repelled . | . . . . . . . . Allies | -11 -10 -10 -9 -9 -9 -8 -8 -------- Run | Yrd Mat Min Mat Min Exi Min Mat Total Allies . | . . . . . . . . Largest Group . | . . . . . . . . Highest-Rated Group . | . . . . . . . . Highest-Rated Ally . | . . . . . . . . Total Orders . | . . . . . . . . Ally Attacks . | . . . . . . . . Total Damage . | . . . . . . . . Kills . | . . . . . . . . Allies Corrupted . | . . . . . . . . Allies Melted . | . . . . . . . . Intel | -11 -10 -10 -9 -9 -9 -8 -8 ------- Run | Yrd Mat Min Mat Min Exi Min Mat Robot Analysis Total . | . . . . . . . . Derelict Logs Recovered 2 | . . 1 . 1 . . . Drone Launches . | . . . . . . . . Drone Recoveries . | . . . . . . . . Exploration | -11 -10 -10 -9 -9 -9 -8 -8 ------------- Run | Yrd Mat Min Mat Min Exi Min Mat Turns Passed 1602 | 98 109 206 109 259 316 200 305 Spaces Moved 910 | 50 68 110 47 136 197 102 200 Core 59 | 4 . . . . . . 55 Treads 795 | 46 68 110 47 136 197 102 89 Legs . | . . . . . . . . Wheels . | . . . . . . . . Hover . | . . . . . . . . Flight 56 | . . . . . . . 56 Fastest Speed 34 | 50 160 160 160 160 160 160 34 Average Speed 145 | 151 160 160 160 160 160 160 95 Slowest Speed 160 | 160 160 160 160 160 160 160 160 Overloaded Moves . | . . . . . . . . Propulsion Burnouts . | . . . . . . . . Robots Hopped 4 | . . . . . . . 4 Cave-ins Triggered . | . . . . . . . . Exploration Rate (%) 25 | 5 17 28 8 25 58 30 33 Regions Visited 7 Branch Regions 4 Pre-discovered Areas 2 | . . . . 2 . . . Known Exits Taken . | . . . . . . . . Unknown Exits Taken 7 | 1 1 1 1 1 1 1 . Scrap Searched 2 | . . 1 . 1 . . . Spaces Dug . | . . . . . . . . Terrain Destroyed 9 | . . . . . . . 9 Melee . | . . . . . . . . Projectile . | . . . . . . . . AOE 9 | . . . . . . . 9 Terrain Rammed . | . . . . . . . . Walls Destroyed . | . . . . . . . . Machines Disabled . | . . . . . . . . Actions | -11 -10 -10 -9 -9 -9 -8 -8 --------- Run | Yrd Mat Min Mat Min Exi Min Mat Total 1088 | 61 68 132 66 159 199 134 269 Wait 63 | . . 7 3 3 . 26 24 Move 896 | 49 67 109 46 135 196 101 193 Hop 3 | . . . . . . . 3 Pick Up 21 | 1 1 4 2 5 1 2 5 Fast Attach 16 | 7 . 3 1 . . . 5 Attach 8 | . . . 3 . . . 5 Detach 2 | . . 1 . . . . 1 Swap 8 | . . 1 2 2 1 . 2 Drop 19 | . . 3 2 4 1 2 7 Fire 52 | 4 . 4 7 10 . 3 24 Melee . | . . . . . . . . Ram . | . . . . . . . . Kick . | . . . . . . . . Crush . | . . . . . . . . Escape Stasis . | . . . . . . . . Rewire . | . . . . . . . . Trap . | . . . . . . . . Miscellaneous . | . . . . . . . . Route ------- -11/Scrapyard -10/Materials -10/Mines -9/Materials -9/Mines (discovered 2 exits: *Mat / *Exi) -9/Exiles -8/Mines -8/Materials (discovered 3 exits: [*Fac] / *Sto x2) History --------- Turn | Location | Event 10 | -11/Scrapyard | Discovered new exit (range 13) 99 | -11/Scrapyard | Entered Materials 117 | -10/Materials | Discovered new exit (range 16) 208 | -10/Materials | Entered Mines 316 | -10/Mines | Build established: Mutant 326 | -10/Mines | Discovered new exit (range 14) 351 | -10/Mines | Joined a pair of Derelicts in attacking an 0b10 outpost 414 | -10/Mines | Entered Materials 414 | -9/Materials | Evolved 2 slots: Propulsion x1, Utility x1 458 | -9/Materials | Discovered new exit (range 6) 523 | -9/Materials | Entered Mines 546 | -9/Mines | Learned location of Zion (-6) 555 | -9/Mines | Learned location of Storage (-8) 565 | -9/Mines | Discovered new exit (range 5) 673 | -9/Mines | Build established: Scavenger-Mutant 776 | -9/Mines | Deemed a non-threat by the Exiles lab entrance 776 | -9/Mines | Discovered new exit (range 5) 782 | -9/Mines | Entered Exiles 782 | -9/Exiles | Found Exiles lab abandoned 1077 | -9/Exiles | Discovered new exit (range 14) 1098 | -9/Exiles | Entered Mines 1287 | -8/Mines | Discovered new exit (range 6) 1298 | -8/Mines | Entered Materials 1298 | -8/Materials | Evolved 2 slots: Propulsion x1, Utility x1 1299 | -8/Materials | Identified exit to Storage 1408 | -8/Materials | Discovered exit to Storage (range 10) 1543 | -8/Materials | Core integrity fell below 50% 1593 | -8/Materials | Lost 13 parts (1p8n1u3w) 1601 | -8/Materials | Discovered new exit (range 6) 1602 | -8/Materials | Core integrity fell below 20% 1603 | -8/Materials | Destroyed by H-61 Shepherd with Heavy Assault Cannon Last Messages --------------- 01575_ ALERT: Hostiles spotted, dispatching reinforcements to Terminal M002. 01582_ Acquired Melee Analysis Suite. 01585_ Acquired Mni. Grenade Launcher. 01586_ S-10 Pest destroyed. 01586_ Hadron Collector disabled. 01593_ ALERT: Suspicious intruders detected, dispatching Cutter reinforcements to area. 01594_ Acquired Flight Unit. 01595_ Acquired 4 matter. 01600_ Melee Analysis Suite destroyed. 01600_ Transport Network Coupler destroyed. 01600_ System corrupted by crushing effect (+3). 01600_ System corrupted by crushing effect (+5). 01600_ Knocked back. 01601_ EXIT=FOUND 01601_ Flight Unit destroyed. 01601_ Knocked back. 01601_ W-25 Informer knocked back. 01602_ System corrupted: Matter fused (-5). Map ----- +----------------------------------------------------+ | # ! ###!!!!### """ #???######?? | | # ##! !## """ [#?? #? | | ? *?? ??# #?? ??? """ #? | | ###+######+##### #####+#+## """ #? | | # """ #? | | + #? | | # """ #? | | ###+######+########## ###### # """ !#? | | T #? ???????# #????# #? """ #? | | # ??????# #????# #? !#? | | # " " #????# #????# #??######?? | | # "G" ##????# #???## ##????????? | | # " #?????# #??## #????????? | | """ # ! ??????# #??# #????????? | | """ ########?????# ##### ##???????? | | """ =#????????????# # ##??????? | | #?????######## # "" #??????? | | ########????""" """ # # "" #??????? | | ??????????? """ """ # """" ! ##??????? | | ??????????# """ """ #???????? | | ??????????# """" #???????? | | ??????????# """" #???????? | | ??????????# w """" #???????? | | ??????????# #???????? | | ??????????# ! c #########???????? | | ??????????########### c@ %#????????????? | | ????????????????????# H #????????????? | | ????????????????????# #????????????? | | ????????????????????####+####????????????? | | ?????????????????????????????????????????? | | ?????????????????????????????????????????? | | ?????????????????????????????????????????? | | ?????????????????????????????????????????? | | ?????????????????????????????????????????? | | ?????????????????????????????????????????? | | ?????????????????????????????????????????? | | ?????????????????????????????????????????? | | ?????????????????????????????????????????? | | ?????????????????????????????????????????? | | ?????????????????????????????????????????? | | ?????????????????????????????????????????? | | ?????????????????????????????????????????? | | | | | | | | | | | | | | | | | +----------------------------------------------------+ Best States ------------- Heat Dissipation 31 Energy Generation 12 Energy Capacity 265 Matter Stores 300 Matter Capacity 300 Sight Range 18 Terrain Scan Density 10 Evasion (%) 63 Melee Accuracy 5 Recoil Reduction 4 Item Schematics ----------------- None Robot Schematics ------------------ None Fabricated ------------ Nothing Alien Tech Used ----------------- None Achievements -------------- None Challenges ------------ None Game ------ Seed CommMetafieldAccelerator Manual? 0 Play Time 00:10:36 Cumulative 264.6 hours Start 2024.06.18 @ 13:58:18 End 2024.06.18 @ 14:09:12 Sessions 1 Manual Loads 0 Difficulty Rogue Special Mode None Game No. 255 Rogue 250 Adventurer 5 Explorer 0 Win Type - Total 4 Types 3/0/0/1/0/0/0/0/0 Lore% 65 Gallery% 83 Achievement% 64 Wizard Run 0 Options --------- Layout 2 ASCII 0 Keyboard 0 Movement Mouse Keybinds 0 Fullscreen 1 Font 24/Terminus Map View 50x44 Zoom Use 0% Tactical HUD 1 Map Filters NONE Filters NONE Steam 1 RUN: 0010c552-1f86-47f0-9e21-9ed1a41fff7a